Cogmind - Beta 16 @@@ ROGUE MODE // 2026.01.23 @ 17:00:59 Player: Zedx Result: Destroyed by Y-54 Guardian with Gatling Laser Performance ------------- Evolutions (4) 2000 Regions Visited (9) 1800 Robots Destroyed (37) 185 Value Destroyed (1203) 1203 Prototype IDs (3) 60 Alien Tech Used (0) 0 Bonus (1128) 1128 TOTAL SCORE: 6376 Bonus ------- High Alert Combat Kills 145 Follower Combat Kills 683 Aligned with FarCom 300 Cogmind --------- Core Integrity 0/850 Matter 184/300 Energy 100/100 System Corruption 0% Temperature Cool (18) Movement Core (50) Location -6/Extension Parts ------- > --- POWER (2) -------- (None) > --- PROPULSION (3) --- (None) > --- UTILITY (6) ------ Improved Signal Interpreter > --- WEAPON (4) ------- (None) > --- INVENTORY (5) ---- Light Ion Engine Huge Storage Unit Pulse Rifle Heavy Missile Launcher Falx Peak State ------------ > --- POWER ------------ Improved Deuterium Engine > --- PROPULSION ------- Advanced Treads Advanced Treads > --- UTILITY ---------- Army-in-a-Box > --- WEAPON ----------- Gatling Laser Heavy Particle Cannon Light Assault Rifle Shotgun > --- INVENTORY -------- Light Ion Engine Aluminum Leg Carbon-fiber Leg Experimental Sensor Array Pulse Rifle [Rating: 75] Favorites ----------- Power Ion Engine Engine Ion Engine Power Core Light Nuclear Core Propulsion Aluminum Leg Treads Advanced Treads Leg Aluminum Leg Flight Unit VTOL Module Utility Large Storage Unit Device Heat Sink Storage Large Storage Unit Processor Improved Signal Interpreter Protection Hardened Light Armor Plating Weapon Light Assault Rifle Energy Gun Pulse Rifle Energy Cannon Heavy Particle Cannon Ballistic Gun Light Assault Rifle Ballistic Cannon Improved Light Cannon Launcher Heavy Missile Launcher Special Weapon Remote Datajack Slashing Weapon Falx Build | -11 -10 -9 -9 -9 -8 -8 -7 -6 -6 ------- Run | Yrd Mat Mat Min Exi Min Mat Fac Fac Ext Slots Evolved 8 | . . 2 . . . 2 2 2 . Power 1 | . . . . . . . . 1 . Propulsion 1 | . . . . . . . . 1 . Utility 4 | . . . . . . 2 2 . . Weapon 2 | . . 2 . . . . . . . Parts Attached 60 | 7 11 7 1 . . 13 7 13 1 Power 7 | 1 2 1 . . . 1 1 . 1 Engine 3 | 1 . 1 . . . . 1 . . Core 4 | . 2 . . . . 1 . . 1 Reactor . | . . . . . . . . . . Propulsion 18 | 2 6 . . . . 4 . 6 . Treads 3 | . . . . . . 3 . . . Leg 12 | 2 6 . . . . 1 . 3 . Wheel . | . . . . . . . . . . Hover . | . . . . . . . . . . Flight 3 | . . . . . . . . 3 . Utility 16 | 2 2 . . . . 6 3 3 . Device 7 | 1 1 . . . . 2 2 1 . Storage 4 | 1 1 . . . . 1 . 1 . Processor 1 | . . . . . . . 1 . . Hackware . | . . . . . . . . . . Protection 4 | . . . . . . 3 . 1 . Artifact . | . . . . . . . . . . Weapon 19 | 2 1 6 1 . . 2 3 4 . Energy Gun 5 | . . 4 . . . . 1 . . Energy Cannon 1 | . . . . . . 1 . . . Ballistic Gun 7 | 2 1 2 . . . 1 . 1 . Ballistic Cannon 1 | . . . 1 . . . . . . Launcher 2 | . . . . . . . 2 . . Special Weapon 1 | . . . . . . . . 1 . Impact Weapon . | . . . . . . . . . . Slashing Weapon 2 | . . . . . . . . 2 . Piercing Weapon . | . . . . . . . . . . Special Melee Weapon . | . . . . . . . . . . Unidentified Prototypes 3 | . . . . . . . 2 1 . Corrupted Parts 1 | . . . . . . . 1 . . System Corruption 1 | . . . . . . . 1 . . Parts Lost 27 | . 5 1 . . . 1 9 8 3 Power 4 | . 1 1 . . . . 1 . 1 Propulsion 8 | . 1 . . . . . 2 4 1 Utility 4 | . 1 . . . . . . 3 . Weapon 11 | . 2 . . . . 1 6 1 1 Highest Loss Streak 6 | . 4 1 . . . 1 5 6 3 To Critical Strikes 1 | . . . . . . . . 1 . Average Backups 8 | 1 5 8 12 13 10 9 5 4 5 Power 1 | . 1 1 2 2 2 2 1 1 1 Propulsion 2 | . 2 4 4 3 3 2 2 1 . Utility 1 | . . 1 1 2 3 3 . . 1 Weapon 2 | . 1 2 5 5 2 2 1 2 3 Tool/Special . | . . . . . . . . . . Unused Backups 13 | . . . 1 4 . 1 3 2 2 Power 4 | . . . 1 1 . . 1 . 1 Propulsion 3 | . . . . 1 . . . 2 . Utility 2 | . . . . 1 . . 1 . . Weapon 4 | . . . . 1 . 1 1 . 1 Tool/Special . | . . . . . . . . . . Average Slot Usage (%) 83 | . 86 97 100 100 100 98 57 40 18 Engine 6 | . 5 9 11 11 11 5 4 . . Core 2 | . 7 1 . . . 3 1 . 1 Treads 3 | . . . . . . 6 13 . . Leg 15 | . 27 22 22 22 22 11 . 8 . Device 9 | . 11 11 11 11 11 9 6 8 . Storage 8 | . 14 11 11 11 11 9 . 3 . Protection 3 | . . . . . . 17 . 1 . Energy Gun 2 | . . 28 2 . . . 2 . . Energy Cannon 1 | . . . . . . 2 6 . . Ballistic Gun 22 | . 19 13 31 33 33 27 17 . . Ballistic Cannon 4 | . . . 9 11 11 5 . . . Peak Build Rating 75 | 7 9 17 13 17 17 32 75 47 15 Average Rating 24 | 5 7 14 12 13 17 25 56 29 9 On Entrance 13 | . 7 8 13 13 17 17 32 13 10 Avg Prop Armor Cover (%) 16 | . . . . . . 4 . 17 . Naked Turns . | . . . . . . . . . . Heaviest Build 104 | 13 28 37 34 34 34 50 104 93 3 Greatest Support 60 | 20 20 20 20 20 20 44 44 60 4 Greatest Overweight (x) 29 | 2 2 1 1 1 1 2 2 29 . Average Overweight (x) . | . . 1 1 1 1 1 1 . . Largest Inventory Capacity 25 | 8 15 15 15 15 15 15 15 25 5 Average Capacity 12 | 7 13 15 15 15 15 15 5 15 5 Most Carried 15 | 2 8 11 14 15 15 15 15 5 5 Average Carried 10 | 1 5 8 13 14 15 14 5 4 5 Final Capacity 15 | 8 15 15 15 15 15 15 5 5 5 Final Carried 15 | 2 8 11 14 15 15 15 5 5 5 Class Distribution -------------------- 38% | Scavenger-Gunner 19% | Skirmisher 16% | Scavenger-Tank 9% | Mutant 7% | Scavenger-Mutant 3% | Assassin 3% | Scavenger-Skirmisher Dominant Class ---------------- Scavenger-Mutant | -10/Materials Scavenger-Gunner | -9/Materials Scavenger-Gunner | -9/Mines Scavenger-Gunner | -9/Exiles Scavenger-Skirmisher | -8/Mines Scavenger-Tank | -8/Materials Skirmisher | -7/Factory Assassin | -6/Factory Mutant | -6/Extension Resources | -11 -10 -9 -9 -9 -8 -8 -7 -6 -6 ----------- Run | Yrd Mat Mat Min Exi Min Mat Fac Fac Ext Matter Collected 1286 | 300 255 111 25 19 . 237 144 195 . Remotely 87 | 87 . . . . . . . . . Salvage Created 1108 | 89 385 163 . . . 189 234 48 . Parts 57 | 3 14 11 . . . 6 21 2 . Haulers Intercepted . | . . . . . . . . . . Recyclers Shooed 1 | . . . . . . . 1 . . Parts Field Recycled . | . . . . . . . . . . Retrieved Matter . | . . . . . . . . . . Parts Self-Destructed . | . . . . . . . . . . Prevented . | . . . . . . . . . . Parts Restored . | . . . . . . . . . . Kills | -11 -10 -9 -9 -9 -8 -8 -7 -6 -6 ------- Run | Yrd Mat Mat Min Exi Min Mat Fac Fac Ext Combat Hostiles Destroyed 30 | . 7 6 . . . 5 10 2 . Melee 2 | . . . . . . . . 2 . Guns 15 | . 7 4 . . . 3 1 . . Cannons 2 | . . . . . . 2 . . . AOE 9 | . . . . . . . 9 . . Classes Destroyed 5 | 1 1 2 . . . . 1 . . Builder 5 | . . . . . . . 5 . . Recycler 2 | 1 1 . . . . . . . . Swarmer 8 | . . 3 . . . . 3 2 . Grunt 18 | . 7 . . . . 4 7 . . Sentry 4 | . . 3 . . . 1 . . . Best Kill Streak 11 | 1 2 3 . . . 2 11 1 . Combat Bots Only 6 | . 2 3 . . . 2 6 1 . Max Kills in Single Turn 6 | 1 1 2 . . . 1 6 1 . Gunslinging 1 | . . 1 . . . . . . . Exploded 2 | . . . . . . . 2 . . Melee 1 | . . . . . . . . 1 . Uniques/NPCs Destroyed . | . . . . . . . . . . Combat | -11 -10 -9 -9 -9 -8 -8 -7 -6 -6 -------- Run | Yrd Mat Mat Min Exi Min Mat Fac Fac Ext Hostile Shots Fired 507 | . 92 28 . . . 72 119 130 66 Missed 142 | . 24 7 . . . 20 37 34 20 Hits 365 | . 68 21 . . . 52 82 96 46 Projectile 365 | . 68 21 . . . 52 82 96 46 Critical Strikes 13 | . 1 1 . . . 3 6 2 . Damage Taken 5292 | . 850 292 . . . 804 1447 1538 361 Core 1364 | . 150 21 . . . 77 256 560 300 Absorbed by Shields . | . . . . . . . . . . Regen/Repaired (Parts) 195 | . 195 . . . . . . . . Core Remaining (%) 76 | 100 40 . . . 94 86 63 . . Volleys Fired 88 | 5 36 9 . 1 . 21 15 1 . Largest 4 | 2 2 4 . 4 . 4 4 1 . Hottest 209 | 40 40 209 . 93 . 93 176 5 . Shots Fired 224 | 10 52 36 . 4 . 80 41 1 . Gun 178 | 10 52 36 . 3 . 63 14 . . Cannon 30 | . . . . 1 . 17 12 . . Launcher 15 | . . . . . . . 15 . . Special 1 | . . . . . . . . 1 . Kinetic 169 | 10 52 9 . 4 . 80 14 . . Thermal 39 | . . 27 . . . . 12 . . Explosive 15 | . . . . . . . 15 . . Electromagnetic . | . . . . . . . . . . Robot Hit Streak 25 | 2 8 25 . . . 8 12 4 . Robot Miss Streak 5 | 2 2 1 . . . 3 5 . . Penetration Max . | . . . . . . . . . . Secondary Targets 2 | . 1 1 . . . . . . . Max Gunslinging Chain 1 | . 1 1 . . . . . . . Shots Hit Robots 145 | 6 35 28 . . . 48 20 8 . Core Hits 78 | 2 17 7 . . . 15 35 2 . Critical Kills . | . . . . . . . . . . Critical Parts Destroyed 1 | . 1 . . . . . . . . Critical Strikes 5 | . 1 2 . . . . . 2 . Burn 2 | . . 2 . . . . . . . Destroy 1 | . 1 . . . . . . . . Sever 2 | . . . . . . . . 2 . Melee Attacks 15 | . . . . . . . . 15 . Impact . | . . . . . . . . . . Slashing 15 | . . . . . . . . 15 . Piercing . | . . . . . . . . . . Sneak Attacks . | . . . . . . . . . . Combat Hostiles . | . . . . . . . . . . Follow-up Attacks 3 | . . . . . . . . 3 . Damage Inflicted 3644 | 82 474 443 . . . 601 1765 279 . Guns 1536 | 82 474 443 . . . 396 141 . . Cannons 316 | . . . . . . 194 122 . . Explosions 1468 | . . . . . . . 1468 . . Melee 279 | . . . . . . . . 279 . Ramming 45 | . . . . . . 11 34 . . Kinetic 1328 | 82 474 41 . . . 590 141 . . Thermal 524 | . . 402 . . . . 122 . . Explosive 1456 | . . . . . . . 1456 . . Electromagnetic 12 | . . . . . . . 12 . . Impact . | . . . . . . . . . . Slashing 279 | . . . . . . . . 279 . Piercing . | . . . . . . . . . . Highest Corruption 2 | . 2 . . . . . 1 . . Average Corruption 1 | . 2 . . . . . 1 . . Corruption Purged . | . . . . . . . . . . Corruption Blocked . | . . . . . . . . . . Effects 8 | . 1 . . . . . 7 . . Message Errors 2 | . 1 . . . . . 1 . . Matter Fused 3 | . . . . . . . 3 . . Heat Flow Errors 1 | . . . . . . . 1 . . Data Loss (minor) 1 | . . . . . . . 1 . . Data Loss (major) 1 | . . . . . . . 1 . . Overload Shots . | . . . . . . . . . . Overflow Damage 150 | . . . . . . . 133 17 . Projectiles . | . . . . . . . . . . Explosions 133 | . . . . . . . 133 . . Melee 17 | . . . . . . . . 17 . Knockbacks 3 | . . . . . . 3 . . . Impact . | . . . . . . . . . . Kinetic 3 | . . . . . . 3 . . . Secondary . | . . . . . . . . . . Self-Inflicted Damage 39 | . . . . . . . 39 . . Shots 2 | . . . . . . . 2 . . Rammed 9 | . . . . . . . 9 . . Targets Rammed 12 | . . 1 . . . 2 9 . . Kicked 3 | . . 1 . . . 2 . . . Crushed . | . . . . . . . . . . Highest Temperature 291 | . 58 291 . . . 174 280 . . Average Temperature 84 | . 31 123 . . . 67 95 . . Received Heat Transfer 1785 | . 486 78 . . . 450 609 48 114 Siege Activations . | . . . . . . . . . . Martial Activations . | . . . . . . . . . . Shielding Activations . | . . . . . . . . . . Robots Disrupted . | . . . . . . . . . . Combat Hostiles . | . . . . . . . . . . Robots Corrupted . | . . . . . . . . . . Combat Hostiles . | . . . . . . . . . . Parts Fried . | . . . . . . . . . . Impact Corruptions . | . . . . . . . . . . Robots Melted 2 | . . 2 . . . . . . . Combat Hostiles 2 | . . 2 . . . . . . . Parts Melted . | . . . . . . . . . . Heat Transferred 1221 | . . 1036 . . . . 185 . . Parts Sabotaged . | . . . . . . . . . . Parts Stolen . | . . . . . . . . . . Parts Stripped . | . . . . . . . . . . Power Chain Reactions . | . . . . . . . . . . Alert | -11 -10 -9 -9 -9 -8 -8 -7 -6 -6 ------- Run | Yrd Mat Mat Min Exi Min Mat Fac Fac Ext Maximum Alert Level 3 | . . . . . . . 3 1 . Low Security (%) 69 | 100 100 100 100 . 100 100 17 14 100 Level 1 16 | . . . . . . . 30 85 . Level 2 10 | . . . . . . . 40 . . Level 3 3 | . . . . . . . 12 . . Level 4 . | . . . . . . . . . . Level 5 . | . . . . . . . . . . High Security . | . . . . . . . . . . Max Security . | . . . . . . . . . . Peak Influence 814 | 5 60 75 10 . . 53 814 390 82 Initial 390 | . . 9 10 . . . . 390 82 Average 143 | . 14 24 . . . 7 405 283 68 Influence Increases 1978 | 5 193 182 . . . 147 1386 65 . Destroy 0b10 Robot/C 980 | . 140 120 . . . 100 580 40 . Destroy 0b10 Robot/NC 100 | 5 5 . . . . . 90 . . Destroy Leader 224 | . 30 40 . . . 30 114 10 . Allied During Kill 374 | . . . . . . . 374 . . Successful Hack 9 | . 3 6 . . . . . . . Disable Machine 60 | . . . . . . . 60 . . Destroy Structure 96 | . . 1 . . . 2 93 . . Lose Combat Pursuer 135 | . 15 15 . . . 15 75 15 . Influence Decreases 1946 | 5 169 179 27 . . 147 588 694 137 Entered New Map 527 | . . 15 17 . . . . 408 87 Time Decay 1029 | 5 129 164 10 . . 137 358 206 20 Lost Part 250 | . 40 . . . . 10 90 80 30 Lost Ally 140 | . . . . . . . 140 . . Squads Dispatched 16 | . 1 . . . . 3 11 1 . Investigation 2 | . . . . . . 1 1 . . Extermination 1 | . . . . . . . 1 . . Reinforcement 8 | . 1 . . . . 2 4 1 . Assault 2 | . . . . . . . 2 . . Garrison 3 | . . . . . . . 3 . . Intercept . | . . . . . . . . . . Searches Triggered . | . . . . . . . . . . Construction Impeded 4 | . . . . . . 1 3 . . Haulers Reinforced . | . . . . . . . . . . Active Scanning Responses . | . . . . . . . . . . Cargo Convoy Interrupts . | . . . . . . . . . . Stealth | -11 -10 -9 -9 -9 -8 -8 -7 -6 -6 --------- Run | Yrd Mat Mat Min Exi Min Mat Fac Fac Ext Distress Signals 5 | . 3 . . . . 2 . . . Communications Jammed . | . . . . . . . . . . Distress Signals . | . . . . . . . . . . Times Spotted 74 | . 14 10 . . . 9 33 6 2 Peak Tracking Total 6 | . 5 4 . . . 4 6 4 2 Tactical Retreats 7 | . 1 1 . . . 1 3 1 . Traps | -11 -10 -9 -9 -9 -8 -8 -7 -6 -6 ------- Run | Yrd Mat Mat Min Exi Min Mat Fac Fac Ext Traps Triggered 3 | . 1 . . . . 1 1 . . Indirectly . | . . . . . . . . . . Trap Hack Attempts . | . . . . . . . . . . Triggered . | . . . . . . . . . . Disarmed . | . . . . . . . . . . Reprogrammed . | . . . . . . . . . . Reused . | . . . . . . . . . . Traps Extracted . | . . . . . . . . . . Installed . | . . . . . . . . . . Triggered . | . . . . . . . . . . Machines | -11 -10 -9 -9 -9 -8 -8 -7 -6 -6 ---------- Run | Yrd Mat Mat Min Exi Min Mat Fac Fac Ext Machines Disabled 4 | . . . . . . . 4 . . Max in Single Turn 2 | . . . . . . . 2 . . Garrison Access 1 | . . . . . . . 1 . . Machines Repaired . | . . . . . . . . . . Machines Dismantled . | . . . . . . . . . . Machines Sabotaged . | . . . . . . . . . . Overloaded Fab Kills . | . . . . . . . . . . Hacking | -11 -10 -9 -9 -9 -8 -8 -7 -6 -6 --------- Run | Yrd Mat Mat Min Exi Min Mat Fac Fac Ext Machines Accessed 11 | . 3 1 . . . 3 4 . . Terminals 9 | . 2 1 . . . 3 3 . . Fabricators . | . . . . . . . . . . Repair Stations 1 | . 1 . . . . . . . . Recycling Units . | . . . . . . . . . . Scanalyzers . | . . . . . . . . . . Garrison Access 1 | . . . . . . . 1 . . Total Hacks 28 | . 13 1 . . . 6 8 . . Successful 11 | . 8 1 . . . 1 1 . . Failed 17 | . 5 . . . . 5 7 . . Catastrophic 4 | . 1 . . . . 3 . . . Database Lockouts . | . . . . . . . . . . Manual 13 | . 2 . . 1 . 6 4 . . Terminals 14 | . 2 1 . . . 6 5 . . Fabricators . | . . . . . . . . . . Repair Stations 11 | . 11 . . . . . . . . Recycling Units . | . . . . . . . . . . Scanalyzers . | . . . . . . . . . . Garrison Access 3 | . . . . . . . 3 . . Terminal Hacks 3 | . . 1 . . . 1 1 . . Robot Analysis 1 | . . 1 . . . . . . . Open DSF 1 | . . . . . . . 1 . . Recall Investigation 1 | . . . . . . 1 . . . Fabricator Hacks . | . . . . . . . . . . Repair Station Hacks 8 | . 8 . . . . . . . . Scan Component 5 | . 5 . . . . . . . . Repair 3 | . 3 . . . . . . . . Recycling Unit Hacks . | . . . . . . . . . . Scanalyzer . | . . . . . . . . . . Garrison Access Hacks . | . . . . . . . . . . Unauthorized Hacks . | . . . . . . . . . . Terminals . | . . . . . . . . . . Fabricators . | . . . . . . . . . . Repair Stations . | . . . . . . . . . . Recycling Units . | . . . . . . . . . . Scanalyzers . | . . . . . . . . . . Garrison Access . | . . . . . . . . . . Data Cores Recovered 1 | . . . . . . . 1 . . Used . | . . . . . . . . . . Hacking Detections 10 | . 3 . . . . 3 4 . . Full Trace Events 1 | . . . . . . . 1 . . Feedback Events . | . . . . . . . . . . Feedback Blocked . | . . . . . . . . . . Robot Schematics Acquired . | . . . . . . . . . . Robots Built . | . . . . . . . . . . Authchips . | . . . . . . . . . . Time . | . . . . . . . . . . Total Robot Build Rating . | . . . . . . . . . . Part Schematics Acquired . | . . . . . . . . . . Parts Built . | . . . . . . . . . . Authchips . | . . . . . . . . . . Time . | . . . . . . . . . . Total Part Build Rating . | . . . . . . . . . . Part Studies Acquired . | . . . . . . . . . . Parts Repaired 3 | . 3 . . . . . . . . Time 78 | . 78 . . . . . . . . Parts Recycled . | . . . . . . . . . . Recycled Matter . | . . . . . . . . . . Retrieved Matter . | . . . . . . . . . . Retrieved Components . | . . . . . . . . . . Parts Scanalyzed . | . . . . . . . . . . Part Schematics Acquired . | . . . . . . . . . . Parts Damaged . | . . . . . . . . . . Bothacking | -11 -10 -9 -9 -9 -8 -8 -7 -6 -6 ------------ Run | Yrd Mat Mat Min Exi Min Mat Fac Fac Ext Used RIF Installer . | . . . . . . . . . . Robots Hacked . | . . . . . . . . . . Non-combat . | . . . . . . . . . . Combat . | . . . . . . . . . . Robot Hacks Applied . | . . . . . . . . . . Relay Couplers Released . | . . . . . . . . . . Fabnet Peak Effective % . | . . . . . . . . . . Robots Rewired . | . . . . . . . . . . Allies Hacked . | . . . . . . . . . . Hacks Repelled . | . . . . . . . . . . Allies | -11 -10 -9 -9 -9 -8 -8 -7 -6 -6 -------- Run | Yrd Mat Mat Min Exi Min Mat Fac Fac Ext Total Allies . | . . . . . . . . . . Largest Group . | . . . . . . . . . . Highest-Rated Group . | . . . . . . . . . . Highest-Rated Ally . | . . . . . . . . . . Total Orders . | . . . . . . . . . . Ally Attacks 190 | . . . . . . . 190 . . Total Damage 4602 | . . . . . . . 4602 . . Kills 46 | . . . . . . . 46 . . Allies Corrupted . | . . . . . . . . . . Allies Melted . | . . . . . . . . . . Intel | -11 -10 -9 -9 -9 -8 -8 -7 -6 -6 ------- Run | Yrd Mat Mat Min Exi Min Mat Fac Fac Ext Active Infowar (turns) 419 | . . . . . . . 226 193 . Sensors 412 | . . . . . . . 226 186 . IFF 110 | . . . . . . . . 110 . Robot Analysis Total 1 | . . 1 . . . . . . . Derelict Logs Recovered . | . . . . . . . . . . Drone Launches 31 | . . . . . . . 31 . . Drone Recoveries 1 | . . . . . . . 1 . . Exploration | -11 -10 -9 -9 -9 -8 -8 -7 -6 -6 ------------- Run | Yrd Mat Mat Min Exi Min Mat Fac Fac Ext Turns Passed 5334 | 73 626 418 365 1313 137 876 1051 429 46 Spaces Moved 2447 | 41 277 171 184 682 73 306 325 305 83 Core 100 | 7 . . . . . . 21 71 1 Treads 440 | . . . . . . 136 304 . . Legs 1636 | 34 277 171 184 682 73 170 . 45 . Wheels . | . . . . . . . . . . Hover . | . . . . . . . . . . Flight 271 | . . . . . . . . 189 82 Fastest Speed 32 | 50 120 190 190 190 190 145 50 32 35 Average Speed 180 | 111 156 190 190 190 190 235 244 92 35 Slowest Speed 1715 | 150 260 190 190 190 190 260 305 1715 50 Overloaded Moves . | . . . . . . . . . . Propulsion Burnouts . | . . . . . . . . . . Robots Hopped 9 | . . . . . . . . . 9 Potential Cave-ins . | . . . . . . . . . . Cave-ins Triggered . | . . . . . . . . . . Exploration Rate (%) 27 | 3 38 20 29 91 34 24 10 10 12 Regions Visited 9 Branch Regions 4 Pre-discovered Areas . | . . . . . . . . . . Known Exits Taken 2 | . . . . . . . 1 1 . Unknown Exits Taken 7 | 1 1 1 1 1 1 1 . . . Scrap Searched 2 | . . . 2 . . . . . . Spaces Dug . | . . . . . . . . . . Terrain Destroyed 98 | . . . . . . . 98 . . Melee . | . . . . . . . . . . Projectile . | . . . . . . . . . . AOE 98 | . . . . . . . 98 . . Terrain Rammed . | . . . . . . . . . . Walls Destroyed . | . . . . . . . . . . Machines Disabled . | . . . . . . . . . . Actions | -11 -10 -9 -9 -9 -8 -8 -7 -6 -6 --------- Run | Yrd Mat Mat Min Exi Min Mat Fac Fac Ext Total 3154 | 54 412 238 200 701 72 421 541 424 91 Wait 430 | . 81 46 8 3 . 64 143 85 . Move 2426 | 40 276 170 183 681 72 305 324 304 71 Hop 3 | . . . . . . . . . 3 Pick Up 21 | 2 4 1 4 4 . 3 1 2 . Fast Attach 42 | 7 4 5 1 . . 5 7 12 1 Attach 5 | . 1 1 . . . . 2 1 . Detach 6 | . . 2 1 . . . 1 2 . Swap 22 | . 8 3 1 1 . 8 1 . . Drop 39 | . 2 . 2 8 . 13 9 5 . Fire 88 | 5 36 9 . 1 . 21 15 1 . Melee 12 | . . . . . . . . 12 . Ram . | . . . . . . . . . . Kick 3 | . . 1 . . . 2 . . . Crush 9 | . . . . . . . 9 . . Escape Stasis . | . . . . . . . . . . Rewire 48 | . . . . 3 . . 29 . 16 Trap . | . . . . . . . . . . Miscellaneous . | . . . . . . . . . . Route ------- -11/Scrapyard -10/Materials -9/Materials -9/Mines -9/Exiles -8/Mines -8/Materials -7/Factory -6/Factory -6/Extension History --------- Turn | Location | Event 5 | -11/Scrapyard | Discovered new exit (range 16) 74 | -11/Scrapyard | Entered Materials 305 | -10/Materials | Build established: Mutant 351 | -10/Materials | Lost 4 parts (1p1n2w) 354 | -10/Materials | Core integrity fell below 50% 469 | -10/Materials | Repaired Assault Rifle 497 | -10/Materials | Repaired Aluminum Leg 524 | -10/Materials | Repaired Aluminum Leg 622 | -10/Materials | Build established: Scavenger-Mutant 645 | -10/Materials | Discovered new exit (range 3) 700 | -10/Materials | Entered another Materials area 700 | -9/Materials | Evolved 2 slots: Weapon x2 1044 | -9/Materials | Build established: Scavenger-Gunner 1087 | -9/Materials | Discovered new exit (range 9) 1118 | -9/Materials | Entered Mines 1128 | -9/Mines | Met a Derelict bent on vengeance 1430 | -9/Mines | Found a damaged Exp. Sensor Array with a note attached 1434 | -9/Mines | Found Prototype Device 1469 | -9/Mines | Deemed a non-threat by the Exiles lab entrance 1471 | -9/Mines | Discovered new exit (range 5) 1483 | -9/Mines | Entered Exiles 1569 | -9/Exiles | Met 8R-AWN 1599 | -9/Exiles | Met EX-HEX 1711 | -9/Exiles | Met EX-DEC 1767 | -9/Exiles | Visited The Gauntlet 2184 | -9/Exiles | Discovered new exit (range 14) 2364 | -9/Exiles | Met EX-BIN 2520 | -9/Exiles | Aligned with FarCom system 2522 | -9/Exiles | Given EX-Vault access code 2577 | -9/Exiles | Opened EX-Vault 2605 | -9/Exiles | Found Prototype Device 2644 | -9/Exiles | Warned to stay clear of 0b10 Research branches 2796 | -9/Exiles | Left Exiles lab with Army-in-a-Box 2796 | -9/Exiles | Entered Mines 2912 | -8/Mines | Discovered new exit (range 6) 2933 | -8/Mines | Entered Materials 2933 | -8/Materials | Evolved 2 slots: Utility x2 3259 | -8/Materials | Build established: Scavenger-Tank 3802 | -8/Materials | Discovered new exit (range 3) 3809 | -8/Materials | Entered Factory 3809 | -7/Factory | Evolved 2 slots: Utility x2 3825 | -7/Factory | Identified Exp. Sensor Array 3829 | -7/Factory | Identified Army-in-a-Box 3967 | -7/Factory | Garrison activated, responded to threat 3997 | -7/Factory | Lost 6 allies 4113 | -7/Factory | Build established: Skirmisher 4204 | -7/Factory | Lost 9 allies 4476 | -7/Factory | Lost 7 allies 4628 | -7/Factory | Lost 5 allies 4768 | -7/Factory | Lost 4 parts (1p1n2w) 4858 | -7/Factory | Discovered new exit (range 5) 4859 | -7/Factory | Identified exit to Factory 4860 | -7/Factory | Entered another Factory area 4860 | -6/Factory | Evolved 2 slots: Power x1, Propulsion x1 4881 | -6/Factory | Lost 5 parts (1n4w) 5227 | -6/Factory | Lost 6 parts (3n3u) 5251 | -6/Factory | Spotted B-75 Beast 5253 | -6/Factory | Core integrity fell below 50% 5284 | -6/Factory | Discovered new exit (range 16) 5289 | -6/Factory | Identified exit to Extension 5289 | -6/Factory | Entered Extension 5329 | -6/Extension | Core integrity fell below 20% 5335 | -6/Extension | Destroyed by Y-54 Guardian with Gatling Laser Last Messages --------------- transfer corridor. 05267_ Fabricator disabled. 05270_ K-01 Serf collects debris. 05284_ EXIT=FOUND 05289_ EXIT=IDENTIFIED: EXTENSION LOCATION=EXTENSION GOAL=ESCAPE 05289_ Receiving FarCom transmissions... 05292_ T-07 Excavator exits Transfer Station. 05313_ Acquired Fission Core. 05315_ Attempting to rewire DK-1GK(g). 05317_ Attempting to rewire WS-15J(h). 05318_ Attempting to rewire DK-1GK(g). 05320_ Y-54 Guardian springs to life. 05321_ Attempting to rewire WS-15J(h). 05322_ Attempting to rewire DK-1GK(g). 05324_ Fission Core destroyed. 05324_ Remote Datajack destroyed. 05327_ VTOL Module destroyed. 05329_ Attempting to rewire 8K-MUI(g). Map ----- +----------------------------------------------------+ | | | | | | | | | | | | | | | | | | | | | | | | | | | | | | | | | | | | | | | | | | | | | ?????????????????????????????????????????????????? | | ?????????????????????????????????????????????????? | | ??????????##################?????????????????????? | | ??????????# @ #?????????????????????? | | ??????????# hgY #?????????????????????? | | ??????????# gYh #?????????????????????? | | ########### ]#?????????????????????? | | # + #?????????????????????? | | # ###########+######+#?????????????????????? | | # #???????????????????????????????w????????? | | # #????????????????????????????????????????? | | # #????????????????????????????????Y???????? | | # ######### ???????????????????????? | | # ???????????????????????? | | ########## ########??????????????????????????????? | | ????????## ##????????????????????????????????????? | | ?######## #????????????????????????????????????? | | ?# #????????????????????????????????????? | | ?# ###### #????????????????????????????????????? | | ?# #????#####????????????????????????????????????? | | ?# #?????????????????????????????????????????????? | | ?# #?????????????????????????????????????????????? | | ?# #?????????????????????????????????????????????? | | ?# #?????????????????????????????????????????????? | | ?# #?????????????????????????????????????????????? | | ?# #?????????????????????????????????????????????? | | ?# #?????????????????????????????????????????????? | | ?# #?????????????????????????????????????????????? | +----------------------------------------------------+ Best States ------------- Heat Dissipation 48 Energy Generation 18 Energy Capacity 310 Matter Stores 300 Matter Capacity 300 Sight Range 16 Robot Scan Range 20 Terrain Scan Density 10 Armor Coverage 375 Evasion (%) 63 Recoil Reduction 2 Item Schematics ----------------- None Robot Schematics ------------------ None Fabricated ------------ Nothing Repaired ---------- Assault Rifle | 33% | -10/Materials Aluminum Leg | 26% | -10/Materials Aluminum Leg | 31% | -10/Materials Studied --------- None Alien Tech Used ----------------- None Achievements -------------- Construction Begets Destruction Release The Drones! Sixth Sense Challenges ------------ None Game ------ Seed PlasmaNuclearLance Manual? 0 Play Time 00:36:21 Cumulative 57.1 hours Start 2026.01.23 @ 16:18:37 End 2026.01.23 @ 17:00:59 Sessions 1 Manual Loads 0 Difficulty Rogue Special Mode None Game No. 68 Rogue 68 Adventurer 0 Explorer 0 Win Type - Total 0 Types 0/0/0/0/0/0/0/0/0/0 Lore% 18 Gallery% 34 Achievement% 21 Wizard Run 0 Options --------- Layout 1 ASCII 0 Keyboard 1 Movement Numpad Keybinds 0 Fullscreen 2 Font 24/Smallcaps Map View 50x35 Zoom Use 0% Tactical HUD 1 Map Filters NONE Filters NONE Steam 1 RUN: 82568f6b-bde6-4f84-b205-72a0b7b91420